[Event "Titled Tuesday Blitz July 11 Early 2023"]
[White "Fiorito, Joaquin"]
[Black "Makhmudov, Shukhrat"]
[WhiteFideId "180173"]
[BlackFideId "14200775"]
[WhiteElo "2630"]
[BlackElo "2376"]
[Result "1-0"]
[Round "2"]
[TimeControl "180+2"]
[Date "2023.07.11"]
[WhiteClock "0:01:28"]
[BlackClock "0:01:28"]
[Board "142"]

1. d4 {[%clk 0:03:00]}  Nf6 {[%clk 0:03:00]} 2. c4 {[%clk 0:03:01]}  e6 {[%clk 0:03:00]} 3. Nc3 {[%clk 0:03:02]}  Bb4 {[%clk 0:03:00]} 4. e3 {[%clk 0:03:02]}  c5 {[%clk 0:03:00]} 5. Ne2 {[%clk 0:03:00]}  Nc6 {[%clk 0:03:01]} 6. a3 {[%clk 0:02:55]}  Bxc3+ {[%clk 0:02:57]} 7. Nxc3 {[%clk 0:02:56]}  d6 {[%clk 0:02:56]} 8. b4 {[%clk 0:02:44]}  cxb4 {[%clk 0:02:54]} 9. axb4 {[%clk 0:02:45]}  O-O {[%clk 0:02:41]} 10. b5 {[%clk 0:02:45]}  Ne7 {[%clk 0:02:40]} 11. Be2 {[%clk 0:02:41]}  b6 {[%clk 0:02:38]} 12. Bf3 {[%clk 0:02:34]}  d5 {[%clk 0:02:38]} 13. c5 {[%clk 0:02:35]}  Qc7 {[%clk 0:02:37]} 14. c6 {[%clk 0:02:34]}  a5 {[%clk 0:02:34]} 15. O-O {[%clk 0:02:31]}  e5 {[%clk 0:02:31]} 16. dxe5 {[%clk 0:02:28]}  Qxe5 {[%clk 0:02:31]} 17. Bb2 {[%clk 0:02:25]}  Be6 {[%clk 0:02:29]} 18. Na4 {[%clk 0:02:25]}  Qc7 {[%clk 0:02:27]} 19. Bxf6 {[%clk 0:02:25]}  gxf6 {[%clk 0:02:27]} 20. Qd4 {[%clk 0:02:25]}  Nf5 {[%clk 0:02:09]} 21. Qxf6 {[%clk 0:02:18]}  Nd6 {[%clk 0:02:09]} 22. Rab1 {[%clk 0:02:14]}  Bf5 {[%clk 0:02:03]} 23. Rb2 {[%clk 0:02:11]}  Be4 {[%clk 0:02:03]} 24. Rd1 {[%clk 0:02:07]}  Nc4 {[%clk 0:01:58]} 25. Bxe4 {[%clk 0:01:51]}  dxe4 {[%clk 0:01:51]} 26. Rd5 {[%clk 0:01:46]}  h6 {[%clk 0:01:43]} 27. Qxh6 {[%clk 0:01:37]}  f6 {[%clk 0:01:36]} 28. Rd7 {[%clk 0:01:36]}  Qxd7 {[%clk 0:01:33]} 29. cxd7 {[%clk 0:01:37]}  Nxb2 {[%clk 0:01:34]} 30. Nxb2 {[%clk 0:01:38]}  Rad8 {[%clk 0:01:33]} 31. Qg6+ {[%clk 0:01:36]}  Kh8 {[%clk 0:01:33]} 32. Qh5+ {[%clk 0:01:36]}  Kg7 {[%clk 0:01:33]} 33. Qg4+ {[%clk 0:01:34]}  Kf7 {[%clk 0:01:33]} 34. Nc4 {[%clk 0:01:31]}  Rb8 {[%clk 0:01:29]} 35. Qxe4 {[%clk 0:01:30]}  Rfd8 {[%clk 0:01:28]} 36. Nd6+ {[%clk 0:01:28]} 1-0


[Site "https://www.chess.com"]

[Event "Titled Tuesday Blitz July 11 Early 2023"]
[White "Mejia, Cherry Ann"]
[Black "Ezat, Mohamed"]
[WhiteFideId "5206880"]
[BlackFideId "10600906"]
[WhiteElo "2375"]
[BlackElo "2611"]
[Result "0-1"]
[Round "2"]
[TimeControl "180+2"]
[Date "2023.07.11"]
[WhiteClock "0:00:00"]
[BlackClock "0:01:13"]
[Board "143"]

1. e4 {[%clk 0:03:00]}  g6 {[%clk 0:02:56]} 2. Nc3 {[%clk 0:03:00]}  Bg7 {[%clk 0:02:56]} 3. d4 {[%clk 0:03:01]}  c6 {[%clk 0:02:57]} 4. Be3 {[%clk 0:03:01]}  d5 {[%clk 0:02:57]} 5. Qd2 {[%clk 0:02:55]}  dxe4 {[%clk 0:02:55]} 6. Nxe4 {[%clk 0:02:55]}  Nf6 {[%clk 0:02:55]} 7. Nxf6+ {[%clk 0:02:52]}  Bxf6 {[%clk 0:02:54]} 8. Bc4 {[%clk 0:02:51]}  Qb6 {[%clk 0:02:49]} 9. c3 {[%clk 0:02:50]}  O-O {[%clk 0:02:47]} 10. h4 {[%clk 0:02:41]}  Nd7 {[%clk 0:02:38]} 11. h5 {[%clk 0:02:39]}  c5 {[%clk 0:02:39]} 12. hxg6 {[%clk 0:02:36]}  hxg6 {[%clk 0:02:39]} 13. Qc2 {[%clk 0:02:04]}  Bg7 {[%clk 0:02:11]} 14. dxc5 {[%clk 0:01:53]}  Nxc5 {[%clk 0:02:04]} 15. b4 {[%clk 0:01:35]}  Qc6 {[%clk 0:02:00]} 16. f3 {[%clk 0:00:53]}  Bf5 {[%clk 0:01:54]} 17. Qb2 {[%clk 0:00:30]}  Nd3+ {[%clk 0:01:50]} 18. Bxd3 {[%clk 0:00:28]}  Bxd3 {[%clk 0:01:50]} 19. Rc1 {[%clk 0:00:29]}  Rac8 {[%clk 0:01:42]} 20. Bd2 {[%clk 0:00:27]}  Rfd8 {[%clk 0:01:36]} 21. Nh3 {[%clk 0:00:13]}  Qe6+ {[%clk 0:01:35]} 22. Kf2 {[%clk 0:00:12]}  Qe2+ {[%clk 0:01:34]} 23. Kg1 {[%clk 0:00:10]}  Qe5 {[%clk 0:01:13]} 24. Nf4 {[%clk 0:00:00]}  Bc4 {[%clk 0:01:13]} 0-1


[Site "https://www.chess.com"]

[Event "Titled Tuesday Blitz July 11 Early 2023"]
[White "Souleidis, Georgios"]
[Black "Ncatt"]
[WhiteFideId "4206827"]
[WhiteElo "2605"]
[BlackElo "2375"]
[Result "1-0"]
[Round "2"]
[TimeControl "180+2"]
[Date "2023.07.11"]
[WhiteClock "0:00:50"]
[BlackClock "0:00:39"]
[Board "144"]

1. e4 {[%clk 0:02:58]}  c5 {[%clk 0:02:59]} 2. Nf3 {[%clk 0:02:58]}  Nc6 {[%clk 0:02:58]} 3. Bc4 {[%clk 0:02:57]}  d6 {[%clk 0:02:57]} 4. O-O {[%clk 0:02:56]}  g6 {[%clk 0:02:57]} 5. Re1 {[%clk 0:02:56]}  Bg7 {[%clk 0:02:56]} 6. c3 {[%clk 0:02:56]}  Nf6 {[%clk 0:02:54]} 7. d3 {[%clk 0:02:50]}  O-O {[%clk 0:02:53]} 8. a4 {[%clk 0:02:50]}  Bg4 {[%clk 0:02:46]} 9. Nbd2 {[%clk 0:02:49]}  Ne5 {[%clk 0:02:43]} 10. h3 {[%clk 0:02:46]}  Bxf3 {[%clk 0:02:39]} 11. Nxf3 {[%clk 0:02:44]}  Nxc4 {[%clk 0:02:39]} 12. dxc4 {[%clk 0:02:45]}  Qc7 {[%clk 0:02:33]} 13. Bf4 {[%clk 0:02:41]}  e5 {[%clk 0:02:30]} 14. Bg5 {[%clk 0:02:39]}  Nh5 {[%clk 0:02:27]} 15. Qd5 {[%clk 0:02:12]}  h6 {[%clk 0:02:25]} 16. Be3 {[%clk 0:02:07]}  Kh7 {[%clk 0:02:21]} 17. g4 {[%clk 0:01:53]}  Nf6 {[%clk 0:02:16]} 18. Qd3 {[%clk 0:01:52]}  Qc6 {[%clk 0:02:15]} 19. Nd2 {[%clk 0:01:50]}  Ng8 {[%clk 0:02:09]} 20. Nf1 {[%clk 0:01:44]}  Bf6 {[%clk 0:02:02]} 21. b3 {[%clk 0:01:31]}  Bg5 {[%clk 0:02:01]} 22. Rad1 {[%clk 0:01:29]}  Rad8 {[%clk 0:01:58]} 23. Bxg5 {[%clk 0:01:29]}  hxg5 {[%clk 0:01:57]} 24. Ne3 {[%clk 0:01:30]}  Ne7 {[%clk 0:01:55]} 25. Nd5 {[%clk 0:01:29]}  Ng8 {[%clk 0:01:53]} 26. Qe3 {[%clk 0:01:27]}  f6 {[%clk 0:01:45]} 27. Rd2 {[%clk 0:01:27]}  Kg7 {[%clk 0:01:45]} 28. Red1 {[%clk 0:01:27]}  Rd7 {[%clk 0:01:42]} 29. Qd3 {[%clk 0:01:19]}  Rfd8 {[%clk 0:01:41]} 30. Ra2 {[%clk 0:01:17]}  Ne7 {[%clk 0:01:35]} 31. b4 {[%clk 0:01:16]}  b6 {[%clk 0:01:32]} 32. b5 {[%clk 0:01:14]}  Qb7 {[%clk 0:01:30]} 33. a5 {[%clk 0:01:12]}  Nc8 {[%clk 0:01:27]} 34. axb6 {[%clk 0:01:10]}  Nxb6 {[%clk 0:01:24]} 35. Ra6 {[%clk 0:01:08]}  Nc8 {[%clk 0:01:19]} 36. Qf3 {[%clk 0:01:06]}  Rf7 {[%clk 0:01:13]} 37. Rda1 {[%clk 0:01:05]}  Qd7 {[%clk 0:01:09]} 38. Rc6 {[%clk 0:00:58]}  f5 {[%clk 0:01:08]} 39. Rc7 {[%clk 0:00:53]}  fxg4 {[%clk 0:00:44]} 40. Rxd7 {[%clk 0:00:50]}  gxf3 {[%clk 0:00:39]} 41. Rxd8 {[%clk 0:00:50]} 1-0


[Site "https://www.chess.com"]

[Event "Titled Tuesday Blitz July 11 Early 2023"]
[White "Ince, Taylan Ruzgar"]
[Black "Goldin, Roman"]
[WhiteFideId "44513089"]
[BlackFideId "2803860"]
[WhiteElo "2596"]
[BlackElo "2371"]
[Result "0-1"]
[Round "2"]
[TimeControl "180+2"]
[Date "2023.07.11"]
[WhiteClock "0:00:58"]
[BlackClock "0:00:25"]
[Board "147"]

1. c4 {[%clk 0:03:00]}  e5 {[%clk 0:02:59]} 2. Nc3 {[%clk 0:02:56]}  Nf6 {[%clk 0:02:59]} 3. Nf3 {[%clk 0:02:55]}  Nc6 {[%clk 0:02:59]} 4. g3 {[%clk 0:02:55]}  d5 {[%clk 0:02:59]} 5. cxd5 {[%clk 0:02:54]}  Nxd5 {[%clk 0:02:59]} 6. Bg2 {[%clk 0:02:55]}  Nb6 {[%clk 0:03:00]} 7. O-O {[%clk 0:02:55]}  Be7 {[%clk 0:03:01]} 8. d3 {[%clk 0:02:52]}  Be6 {[%clk 0:03:01]} 9. Be3 {[%clk 0:02:50]}  O-O {[%clk 0:02:57]} 10. Rc1 {[%clk 0:02:48]}  Qd7 {[%clk 0:02:43]} 11. a3 {[%clk 0:02:47]}  Rfd8 {[%clk 0:02:39]} 12. b4 {[%clk 0:02:40]}  f6 {[%clk 0:02:35]} 13. Ne4 {[%clk 0:02:38]}  Nd5 {[%clk 0:02:33]} 14. Bd2 {[%clk 0:02:33]}  Rac8 {[%clk 0:02:25]} 15. Nc5 {[%clk 0:02:31]}  Bxc5 {[%clk 0:02:24]} 16. Rxc5 {[%clk 0:02:32]}  Nce7 {[%clk 0:02:13]} 17. Qb1 {[%clk 0:02:21]}  Bh3 {[%clk 0:02:03]} 18. Rfc1 {[%clk 0:02:18]}  Bxg2 {[%clk 0:02:02]} 19. Kxg2 {[%clk 0:02:19]}  c6 {[%clk 0:01:35]} 20. a4 {[%clk 0:02:14]}  b6 {[%clk 0:01:26]} 21. R5c2 {[%clk 0:02:12]}  Qe6 {[%clk 0:01:26]} 22. Qb3 {[%clk 0:01:52]}  Nf4+ {[%clk 0:01:24]} 23. gxf4 {[%clk 0:01:47]}  Qxb3 {[%clk 0:01:24]} 24. fxe5 {[%clk 0:01:48]}  fxe5 {[%clk 0:01:23]} 25. Rc4 {[%clk 0:01:48]}  Qxa4 {[%clk 0:01:19]} 26. Nxe5 {[%clk 0:01:44]}  Qb5 {[%clk 0:01:13]} 27. Nf3 {[%clk 0:01:42]}  Qd5 {[%clk 0:01:12]} 28. Rg4 {[%clk 0:01:38]}  Rf8 {[%clk 0:01:02]} 29. Bc3 {[%clk 0:01:38]}  g6 {[%clk 0:00:56]} 30. e4 {[%clk 0:01:19]}  Qxd3 {[%clk 0:00:32]} 31. Ne5 {[%clk 0:01:18]}  Qe2 {[%clk 0:00:32]} 32. Bd4 {[%clk 0:01:18]}  c5 {[%clk 0:00:25]} 33. bxc5 {[%clk 0:00:58]}  Nc6 {[%clk 0:00:25]} 0-1


[Site "https://www.chess.com"]

[Event "Titled Tuesday Blitz July 11 Early 2023"]
[White "Ionescu, Mihai"]
[Black "MAHanif"]
[WhiteFideId "1202499"]
[WhiteElo "2583"]
[BlackElo "2365"]
[Result "1/2-1/2"]
[Round "2"]
[TimeControl "180+2"]
[Date "2023.07.11"]
[WhiteClock "0:00:30"]
[BlackClock "0:00:19"]
[Board "150"]

1. Nf3 {[%clk 0:02:59]}  d5 {[%clk 0:02:56]} 2. g3 {[%clk 0:02:52]}  Nf6 {[%clk 0:02:48]} 3. Bg2 {[%clk 0:02:47]}  g6 {[%clk 0:02:48]} 4. O-O {[%clk 0:02:47]}  Bg7 {[%clk 0:02:49]} 5. c4 {[%clk 0:02:44]}  O-O {[%clk 0:02:50]} 6. cxd5 {[%clk 0:02:42]}  Nxd5 {[%clk 0:02:43]} 7. d3 {[%clk 0:02:43]}  e5 {[%clk 0:02:42]} 8. Nc3 {[%clk 0:02:39]}  c6 {[%clk 0:02:33]} 9. a3 {[%clk 0:02:36]}  Na6 {[%clk 0:02:19]} 10. Qc2 {[%clk 0:02:35]}  h6 {[%clk 0:02:04]} 11. b4 {[%clk 0:02:29]}  Nac7 {[%clk 0:02:04]} 12. Bb2 {[%clk 0:02:27]}  Re8 {[%clk 0:01:55]} 13. Rac1 {[%clk 0:02:24]}  a6 {[%clk 0:01:50]} 14. Na4 {[%clk 0:02:17]}  Nb5 {[%clk 0:01:47]} 15. Nc5 {[%clk 0:02:06]}  Nd4 {[%clk 0:01:44]} 16. Nxd4 {[%clk 0:01:54]}  exd4 {[%clk 0:01:43]} 17. Qc4 {[%clk 0:01:43]}  Nc3 {[%clk 0:01:40]} 18. Bxc3 {[%clk 0:01:37]}  dxc3 {[%clk 0:01:39]} 19. Qb3 {[%clk 0:01:32]}  Rxe2 {[%clk 0:01:37]} 20. Rfd1 {[%clk 0:01:25]}  Rb2 {[%clk 0:01:33]} 21. Qc4 {[%clk 0:01:19]}  Qd4 {[%clk 0:01:26]} 22. Ne4 {[%clk 0:01:03]}  Be6 {[%clk 0:01:21]} 23. Qxc3 {[%clk 0:00:53]}  f5 {[%clk 0:01:08]} 24. Qxd4 {[%clk 0:00:39]}  Bxd4 {[%clk 0:01:06]} 25. Nc5 {[%clk 0:00:40]}  Bxf2+ {[%clk 0:01:05]} 26. Kf1 {[%clk 0:00:39]}  Bf7 {[%clk 0:00:38]} 27. Na4 {[%clk 0:00:36]}  Ra2 {[%clk 0:00:26]} 28. Nc3 {[%clk 0:00:35]}  Rb2 {[%clk 0:00:24]} 29. Na4 {[%clk 0:00:30]}  Ra2 {[%clk 0:00:24]} 30. Nc3 {[%clk 0:00:30]}  Rb2 {[%clk 0:00:19]} 31. Na4 {[%clk 0:00:30]} 1/2-1/2


[Site "https://www.chess.com"]

[Event "Titled Tuesday Blitz July 11 Early 2023"]
[White "Kumala, Aleksander"]
[Black "Haitin, Ilja"]
[WhiteFideId "1141880"]
[BlackFideId "4501764"]
[WhiteElo "2572"]
[BlackElo "2362"]
[Result "1/2-1/2"]
[Round "2"]
[TimeControl "180+2"]
[Date "2023.07.11"]
[WhiteClock "0:00:06"]
[BlackClock "0:00:01"]
[Board "154"]

1. d4 {[%clk 0:03:00]}  e6 {[%clk 0:02:59]} 2. e4 {[%clk 0:03:01]}  d5 {[%clk 0:02:59]} 3. Nd2 {[%clk 0:03:01]}  Be7 {[%clk 0:02:59]} 4. Ngf3 {[%clk 0:02:57]}  Nf6 {[%clk 0:02:54]} 5. e5 {[%clk 0:02:56]}  Nfd7 {[%clk 0:02:54]} 6. Bd3 {[%clk 0:02:55]}  c5 {[%clk 0:02:55]} 7. c3 {[%clk 0:02:55]}  Nc6 {[%clk 0:02:54]} 8. O-O {[%clk 0:02:54]}  g5 {[%clk 0:02:43]} 9. dxc5 {[%clk 0:02:31]}  Nxc5 {[%clk 0:02:41]} 10. Bc2 {[%clk 0:02:30]}  g4 {[%clk 0:02:38]} 11. Nd4 {[%clk 0:02:28]}  Nxe5 {[%clk 0:02:34]} 12. f4 {[%clk 0:02:27]}  gxf3 {[%clk 0:02:23]} 13. N2xf3 {[%clk 0:02:27]}  Ng6 {[%clk 0:02:18]} 14. Bh6 {[%clk 0:02:21]}  Bd7 {[%clk 0:02:13]} 15. b4 {[%clk 0:02:04]}  Ne4 {[%clk 0:02:10]} 16. Qe1 {[%clk 0:02:00]}  f5 {[%clk 0:01:55]} 17. c4 {[%clk 0:01:46]}  Qb6 {[%clk 0:01:01]} 18. c5 {[%clk 0:01:19]}  Qc7 {[%clk 0:00:58]} 19. Bxe4 {[%clk 0:01:15]}  dxe4 {[%clk 0:00:48]} 20. Ng5 {[%clk 0:01:15]}  Bxg5 {[%clk 0:00:45]} 21. Bxg5 {[%clk 0:01:14]}  O-O {[%clk 0:00:46]} 22. Rd1 {[%clk 0:01:08]}  Ba4 {[%clk 0:00:43]} 23. Rc1 {[%clk 0:01:03]}  Qe5 {[%clk 0:00:41]} 24. Ne2 {[%clk 0:00:52]}  Bb5 {[%clk 0:00:41]} 25. Bh6 {[%clk 0:00:49]}  Rf7 {[%clk 0:00:40]} 26. Rf2 {[%clk 0:00:34]}  Bxe2 {[%clk 0:00:37]} 27. Qxe2 {[%clk 0:00:32]}  Rd8 {[%clk 0:00:31]} 28. Qc2 {[%clk 0:00:29]}  f4 {[%clk 0:00:27]} 29. b5 {[%clk 0:00:29]}  e3 {[%clk 0:00:26]} 30. Re2 {[%clk 0:00:29]}  Qh5 {[%clk 0:00:24]} 31. c6 {[%clk 0:00:30]}  bxc6 {[%clk 0:00:24]} 32. bxc6 {[%clk 0:00:30]}  Qxh6 {[%clk 0:00:24]} 33. c7 {[%clk 0:00:31]}  Rc8 {[%clk 0:00:25]} 34. Qe4 {[%clk 0:00:27]}  Qf8 {[%clk 0:00:18]} 35. Qxe6 {[%clk 0:00:27]}  Kh8 {[%clk 0:00:15]} 36. Rec2 {[%clk 0:00:25]}  Re7 {[%clk 0:00:14]} 37. Qd6 {[%clk 0:00:22]}  f3 {[%clk 0:00:13]} 38. gxf3 {[%clk 0:00:17]}  e2 {[%clk 0:00:14]} 39. Re1 {[%clk 0:00:13]}  Rexc7 {[%clk 0:00:05]} 40. Rxc7 {[%clk 0:00:12]}  Qxd6 {[%clk 0:00:05]} 41. Rxc8+ {[%clk 0:00:13]}  Kg7 {[%clk 0:00:06]} 42. Rxe2 {[%clk 0:00:12]}  Nf4 {[%clk 0:00:06]} 43. Rec2 {[%clk 0:00:10]}  Qd1+ {[%clk 0:00:06]} 44. Kf2 {[%clk 0:00:11]}  Qd4+ {[%clk 0:00:06]} 45. Kg3 {[%clk 0:00:11]}  Ng6 {[%clk 0:00:06]} 46. R8c7+ {[%clk 0:00:10]}  Kh6 {[%clk 0:00:06]} 47. R7c4 {[%clk 0:00:08]}  Qg1+ {[%clk 0:00:06]} 48. Kh3 {[%clk 0:00:05]}  Qf1+ {[%clk 0:00:06]} 49. Kg3 {[%clk 0:00:05]}  Qe1+ {[%clk 0:00:06]} 50. Kg2 {[%clk 0:00:05]}  Qe6 {[%clk 0:00:05]} 51. h3 {[%clk 0:00:05]}  a6 {[%clk 0:00:05]} 52. a4 {[%clk 0:00:05]}  Qf6 {[%clk 0:00:05]} 53. Kg3 {[%clk 0:00:05]}  Qg5+ {[%clk 0:00:04]} 54. Rg4 {[%clk 0:00:05]}  Qe5+ {[%clk 0:00:04]} 55. Kg2 {[%clk 0:00:05]}  Nf4+ {[%clk 0:00:04]} 56. Kg1 {[%clk 0:00:04]}  Qe1+ {[%clk 0:00:04]} 57. Kh2 {[%clk 0:00:05]}  Qe5 {[%clk 0:00:03]} 58. Rc6+ {[%clk 0:00:05]}  Ng6+ {[%clk 0:00:04]} 59. Kg2 {[%clk 0:00:04]}  Qe2+ {[%clk 0:00:03]} 60. Kg3 {[%clk 0:00:05]}  Qe1+ {[%clk 0:00:03]} 61. Kg2 {[%clk 0:00:05]}  Qe2+ {[%clk 0:00:03]} 62. Kg3 {[%clk 0:00:06]}  Qd1 {[%clk 0:00:03]} 63. Kg2 {[%clk 0:00:06]}  Qe2+ {[%clk 0:00:01]} 1/2-1/2


[Site "https://www.chess.com"]

[Event "Titled Tuesday Blitz July 11 Early 2023"]
[White "Ganiev, Roman"]
[Black "Alahakoon, Isuru"]
[WhiteFideId "4131452"]
[BlackFideId "9900993"]
[WhiteElo "2566"]
[BlackElo "2360"]
[Result "0-1"]
[Round "2"]
[TimeControl "180+2"]
[Date "2023.07.11"]
[WhiteClock "0:00:01"]
[BlackClock "0:01:01"]
[Board "155"]

1. e4 {[%clk 0:02:56]}  d5 {[%clk 0:02:59]} 2. exd5 {[%clk 0:02:49]}  Qxd5 {[%clk 0:03:00]} 3. Nc3 {[%clk 0:02:49]}  Qa5 {[%clk 0:02:58]} 4. d4 {[%clk 0:02:47]}  Nf6 {[%clk 0:02:56]} 5. Bc4 {[%clk 0:02:44]}  Bg4 {[%clk 0:02:56]} 6. Nf3 {[%clk 0:02:34]}  Nc6 {[%clk 0:02:51]} 7. Bd2 {[%clk 0:02:27]}  O-O-O {[%clk 0:02:49]} 8. Nd5 {[%clk 0:02:17]}  Qa4 {[%clk 0:02:48]} 9. Bb3 {[%clk 0:02:11]}  Qa6 {[%clk 0:02:47]} 10. Ne3 {[%clk 0:01:44]}  Bxf3 {[%clk 0:02:34]} 11. Qxf3 {[%clk 0:01:44]}  Nxd4 {[%clk 0:02:34]} 12. Qd1 {[%clk 0:01:24]}  Ne4 {[%clk 0:02:33]} 13. Bc4 {[%clk 0:01:13]}  Qg6 {[%clk 0:02:23]} 14. Bd3 {[%clk 0:01:06]}  f5 {[%clk 0:02:12]} 15. O-O {[%clk 0:00:59]}  e5 {[%clk 0:02:01]} 16. Re1 {[%clk 0:00:50]}  Nxd2 {[%clk 0:01:53]} 17. Kh1 {[%clk 0:00:20]}  e4 {[%clk 0:01:31]} 18. Qxd2 {[%clk 0:00:14]}  exd3 {[%clk 0:01:31]} 19. Qxd3 {[%clk 0:00:14]}  Nf3 {[%clk 0:01:26]} 20. Qb3 {[%clk 0:00:09]}  Nxe1 {[%clk 0:01:23]} 21. Rxe1 {[%clk 0:00:10]}  Bc5 {[%clk 0:01:21]} 22. Nd5 {[%clk 0:00:08]}  Rhe8 {[%clk 0:01:15]} 23. Rd1 {[%clk 0:00:06]}  c6 {[%clk 0:01:10]} 24. c4 {[%clk 0:00:03]}  cxd5 {[%clk 0:01:09]} 25. cxd5 {[%clk 0:00:04]}  Kb8 {[%clk 0:01:07]} 26. Qc4 {[%clk 0:00:04]}  Bd6 {[%clk 0:01:06]} 27. g3 {[%clk 0:00:05]}  Qg4 {[%clk 0:01:04]} 28. Rd4 {[%clk 0:00:01]}  Qf3+ {[%clk 0:01:01]} 0-1


[Site "https://www.chess.com"]

[Event "Titled Tuesday Blitz July 11 Early 2023"]
[White "Zubarev, Alexander"]
[Black "Avalos Parra, Joao"]
[WhiteFideId "14104385"]
[BlackFideId "3402541"]
[WhiteElo "2547"]
[BlackElo "2341"]
[Result "1-0"]
[Round "2"]
[TimeControl "180+2"]
[Date "2023.07.11"]
[WhiteClock "0:01:19"]
[BlackClock "0:01:44"]
[Board "157"]

1. e4 {[%clk 0:03:00]}  e5 {[%clk 0:02:59]} 2. Nf3 {[%clk 0:03:00]}  Nc6 {[%clk 0:02:59]} 3. Bc4 {[%clk 0:03:00]}  Bc5 {[%clk 0:02:58]} 4. c3 {[%clk 0:02:56]}  Nf6 {[%clk 0:02:57]} 5. d4 {[%clk 0:02:57]}  exd4 {[%clk 0:02:57]} 6. e5 {[%clk 0:02:57]}  d5 {[%clk 0:02:57]} 7. Be2 {[%clk 0:02:56]}  Ne4 {[%clk 0:02:54]} 8. cxd4 {[%clk 0:02:55]}  Bb4+ {[%clk 0:02:54]} 9. Bd2 {[%clk 0:02:55]}  Nxd2 {[%clk 0:02:51]} 10. Nbxd2 {[%clk 0:02:56]}  O-O {[%clk 0:02:50]} 11. O-O {[%clk 0:02:56]}  f6 {[%clk 0:02:51]} 12. Bb5 {[%clk 0:02:56]}  Bg4 {[%clk 0:02:46]} 13. h3 {[%clk 0:02:51]}  Bh5 {[%clk 0:02:45]} 14. Qb3 {[%clk 0:02:48]}  Bxd2 {[%clk 0:02:28]} 15. Bxc6 {[%clk 0:02:25]}  bxc6 {[%clk 0:02:27]} 16. Nxd2 {[%clk 0:02:24]}  fxe5 {[%clk 0:02:27]} 17. dxe5 {[%clk 0:02:25]}  Qg5 {[%clk 0:02:28]} 18. Qc3 {[%clk 0:02:14]}  c5 {[%clk 0:02:14]} 19. Rae1 {[%clk 0:02:03]}  Rad8 {[%clk 0:02:10]} 20. e6 {[%clk 0:01:53]}  Rfe8 {[%clk 0:02:09]} 21. Re5 {[%clk 0:01:50]}  Qg6 {[%clk 0:02:02]} 22. e7 {[%clk 0:01:45]}  Rb8 {[%clk 0:01:50]} 23. Qxc5 {[%clk 0:01:43]}  Rxb2 {[%clk 0:01:50]} 24. Qxd5+ {[%clk 0:01:41]}  Qf7 {[%clk 0:01:50]} 25. Rxh5 {[%clk 0:01:25]}  Rxd2 {[%clk 0:01:50]} 26. Qxd2 {[%clk 0:01:24]}  Qxh5 {[%clk 0:01:50]} 27. Re1 {[%clk 0:01:23]}  Qc5 {[%clk 0:01:44]} 28. Qd7 {[%clk 0:01:19]}  Kf7 {[%clk 0:01:44]} 29. Qe6# {[%clk 0:01:19]} 1-0


[Site "https://www.chess.com"]

[Event "Titled Tuesday Blitz July 11 Early 2023"]
[White "Rosenberg, Evan S"]
[Black "robertoalejandro10"]
[WhiteFideId "2019299"]
[WhiteElo "2337"]
[BlackElo "2545"]
[Result "0-1"]
[Round "2"]
[TimeControl "180+2"]
[Date "2023.07.11"]
[WhiteClock "0:00:22"]
[BlackClock "0:00:17"]
[Board "158"]

1. d4 {[%clk 0:03:00]}  Nf6 {[%clk 0:02:47]} 2. Nf3 {[%clk 0:03:01]}  c5 {[%clk 0:02:43]} 3. d5 {[%clk 0:03:00]}  d6 {[%clk 0:02:43]} 4. Nc3 {[%clk 0:03:00]}  g6 {[%clk 0:02:43]} 5. e4 {[%clk 0:03:01]}  Bg7 {[%clk 0:02:43]} 6. Bb5+ {[%clk 0:03:01]}  Bd7 {[%clk 0:02:43]} 7. a4 {[%clk 0:03:02]}  O-O {[%clk 0:02:43]} 8. Be2 {[%clk 0:03:01]}  Na6 {[%clk 0:02:43]} 9. O-O {[%clk 0:03:01]}  Nc7 {[%clk 0:02:44]} 10. h3 {[%clk 0:02:57]}  a6 {[%clk 0:02:43]} 11. a5 {[%clk 0:02:49]}  Nb5 {[%clk 0:02:43]} 12. e5 {[%clk 0:02:34]}  Nxc3 {[%clk 0:02:14]} 13. bxc3 {[%clk 0:02:33]}  dxe5 {[%clk 0:02:14]} 14. Nxe5 {[%clk 0:02:32]}  Ne4 {[%clk 0:02:15]} 15. Nxd7 {[%clk 0:02:30]}  Qxd7 {[%clk 0:02:16]} 16. Bb2 {[%clk 0:02:15]}  Nxc3 {[%clk 0:02:11]} 17. Bxc3 {[%clk 0:02:15]}  Bxc3 {[%clk 0:02:12]} 18. Ra2 {[%clk 0:01:59]}  Rfd8 {[%clk 0:02:02]} 19. Qd3 {[%clk 0:02:00]}  Bf6 {[%clk 0:01:53]} 20. c4 {[%clk 0:02:00]}  Qc7 {[%clk 0:01:43]} 21. Rb1 {[%clk 0:01:59]}  Rdb8 {[%clk 0:01:42]} 22. Bf3 {[%clk 0:01:58]}  Bd4 {[%clk 0:01:39]} 23. Re2 {[%clk 0:01:33]}  Ra7 {[%clk 0:01:25]} 24. Rbe1 {[%clk 0:01:31]}  Bf6 {[%clk 0:01:24]} 25. Qd2 {[%clk 0:01:30]}  Kg7 {[%clk 0:01:21]} 26. g3 {[%clk 0:01:28]}  b5 {[%clk 0:01:18]} 27. axb6 {[%clk 0:01:27]}  Rxb6 {[%clk 0:01:08]} 28. h4 {[%clk 0:01:28]}  Rb2 {[%clk 0:01:05]} 29. Qc1 {[%clk 0:01:22]}  Rxe2 {[%clk 0:01:04]} 30. Rxe2 {[%clk 0:01:23]}  Bd4 {[%clk 0:01:04]} 31. h5 {[%clk 0:01:20]}  Qxg3+ {[%clk 0:01:04]} 32. Bg2 {[%clk 0:01:21]}  Qh4 {[%clk 0:00:59]} 33. hxg6 {[%clk 0:01:20]}  hxg6 {[%clk 0:00:58]} 34. Qb1 {[%clk 0:01:15]}  Rd7 {[%clk 0:00:27]} 35. Qb6 {[%clk 0:01:12]}  Rd6 {[%clk 0:00:22]} 36. Qa7 {[%clk 0:01:12]}  Rf6 {[%clk 0:00:22]} 37. d6 {[%clk 0:00:23]}  Bxf2+ {[%clk 0:00:17]} 38. Kf1 {[%clk 0:00:22]} 0-1


[Site "https://www.chess.com"]